Workbook

Sheet Instructions
A6: Instructions
A8: 1.) Find a quiet place and allow yourself the full four hour exam period to practice. Treat this just as you would the real exam.
A10: 2.) Use the Navigator worksheet to see a brief description of each question, its point value and navigate between questions in your preferred order.
A12: 3.) Answer each question either to the side or below the grey question area.
A14: 4.) Use cell B1 on each question worksheet to mark whether you finished the question or not. You should use this feature to
A15: reflect your confidence in your answer. This way you'll know if you're on the money or your guesses were lucky.
A17: 5.) Grade each question harshly. It's better to put in extra reviewing time now than find the examiners aren't as generous as you hoped.
A18: Use increments of 0.25 when scoring; pay attention to the language used in the question and the point value. An "identify" question
A19: is likely 0.25 per item while an "explain" or "briefly justify" gets 0.25 for the item and another 0.25 for the justification.
A21: 6.) Enter your estimated score for each sub-part of a question in the box beneath the sub-part point value. They look like:
A23: 7.) Use the Point Grid to see your score and a breakdown of where you scored well and where you didn't.
A25: 8.) Find the top five questions where you lost the most points. These are the topics you need to review the most intensely in the
A26: next day or so.
A28: 9.) On the BattleActs site → Custom Battles → BattleCards - Prior Exams → Select this exam and mark the cards you got right and wrong.
A29: This allows your Battle Readiness Quotient (BRQ) to track your strengths and weaknesses.
A31: 10.) Use the Reset Exam button on the Point Grid worksheet to clear all of your work ready for a new attempt at this exam later.
A32: slay the beast

Sheet Point Grid
A5: Practice Exam 1 – Exam 8
B6: Total Point Value | C6: Sub-Part of Question | L6: Your Score | M6: Sub-Part of Question
A7: Question | C7: (a) | D7: (b) | E7: (c) | F7: (d) | G7: (e) | H7: (f) | I7: (g) | J7: Status | L7: Question | M7: (a) | N7: (b) | O7: (c) | P7: (d) | Q7: (e) | R7: (f) | S7: (g)
A8: 1 | B8: =SUM(C8:I8) -> 3.50 | C8: 2.50 | D8: 1.00 | J8: =INDIRECT("'"&A8&"'!B1") -> Incomplete | L8: =A8 -> 1 | M8: =_xlfn.IFNA(IF(ISBLANK(INDEX(INDIRECT("'"&$L8&"'!$A:$A"),MATCH(M$7,INDIRECT("'"&$L8&"'!$A:$A"),0)+2)),"",INDEX(INDIRECT("'"&$L8&"'!$A:$A"),MATCH(M$7,INDIRECT("'"&$L8&"'!$A:$A"),0)+2)),"") -> 
A9: 2 | B9: =SUM(C9:I9) -> 2.00 | C9: 2.00 | J9: =INDIRECT("'"&A9&"'!B1") -> Incomplete | L9: =A9 -> 2
A10: 3 | B10: 2.00 | C10: 2.00 | J10: Incomplete | L10: 3
A11: 4 | B11: 1.50 | C11: 1.50 | J11: Incomplete | L11: 4
A12: 5 | B12: 1.50 | C12: 1.50 | J12: Incomplete | L12: 5
A13: 6 | B13: 2.75 | C13: 1.50 | D13: 0.25 | E13: 1.00 | J13: Incomplete | L13: 6
A14: 7 | B14: 3.00 | C14: 2.50 | D14: 0.50 | J14: Incomplete | L14: 7
A15: 8 | B15: 3.50 | C15: 1.50 | D15: 2.00 | J15: Incomplete | L15: 8
A16: 9 | B16: 4.00 | C16: 4.00 | J16: Incomplete | L16: 9
A17: 10 | B17: 1.75 | C17: 0.50 | D17: 0.25 | E17: 0.25 | F17: 0.75 | J17: Incomplete | L17: 10
A18: 11 | B18: 2.75 | C18: 0.50 | D18: 0.50 | E18: 0.50 | F18: 0.50 | G18: 0.75 | J18: Incomplete | L18: 11 | M18: =_xlfn.IFNA(IF(ISBLANK(INDEX(INDIRECT("'"&$L18&"'!$A:$A"),MATCH(M$7,INDIRECT("'"&$L18&"'!$A:$A"),0)+2)),"",INDEX(INDIRECT("'"&$L18&"'!$A:$A"),MATCH(M$7,INDIRECT("'"&$L18&"'!$A:$A"),0)+2)),"") -> 
A19: 12 | B19: 3.00 | C19: 1.00 | D19: 1.00 | E19: 1.00 | J19: Incomplete | L19: 12
A20: 13 | B20: 2.00 | C20: 0.50 | D20: 0.50 | E20: 0.50 | F20: 0.50 | J20: Incomplete | L20: 13
A21: 14 | B21: 2.00 | C21: 2.00 | J21: Incomplete | L21: 14
A22: 15 | B22: 4.00 | C22: 2.00 | D22: 2.00 | J22: Incomplete | L22: 15
A23: 16 | B23: 4.00 | C23: 2.00 | D23: 2.00 | J23: Incomplete | L23: 16
A24: 17 | B24: 1.50 | C24: 1.50 | J24: Incomplete | L24: 17
A25: 18 | B25: 3.00 | C25: 2.50 | D25: 0.50 | J25: Incomplete | L25: 18
A26: 19 | B26: 2.50 | C26: 1.50 | D26: 1.00 | J26: Incomplete | L26: 19
A27: 20 | B27: 2.50 | C27: 0.50 | D27: 0.50 | E27: 0.75 | F27: 0.75 | J27: Incomplete | L27: 20
A28: 21 | B28: 2.25 | C28: 1.00 | D28: 1.00 | E28: 0.25 | J28: Incomplete | L28: 21
A29: 22 | B29: 1.75 | C29: 0.75 | D29: 0.50 | E29: 0.50 | J29: Incomplete | L29: 22
A30: 23 | B30: 2.00 | C30: 0.50 | D30: 1.00 | E30: 0.50 | J30: =INDIRECT("'"&A30&"'!B1") -> Incomplete | L30: =A30 -> 23
A32: Total | B32: =SUM(B8:B30) -> 58.75 | L32: TOTAL | M32: =IF(SUM(IF(M8:S30="",0,1))=0,"",SUM(M8:S30)) ->  | O32: Percentage: | P32: =IF(M32="","",M32/B32) -> 
L34: Passing Score: | M34: =MROUND(72%*B32,0.25) -> 42.25

Sheet Navigator
A6: Navigator – Select a question to go to it
A8: Question # | H8: Status
A9: Q1 -- Bailey & Simon -- Relative Credibility -- 3.50 points | H9: ='Point Grid'!J8 -> Incomplete
A10: Q2 -- GLM -- Estimate probability using GLM output -- 2.00 points | H10: ='Point Grid'!J9 -> Incomplete
A11: Q3 -- GLM -- Number of Parameters within a GLM -- 2.00 points | H11: ='Point Grid'!J10 -> Incomplete
A12: Q4 -- Mahler -- Criteria for Credibility -- 1.50 points | H12: ='Point Grid'!J11 -> Incomplete
A13: Q5 -- Couret & Venter -- Determine best approach using SSE -- 1.50 points | H13: ='Point Grid'!J12 -> Incomplete
A14: Q6 -- GLM -- Adding variables to a GLM or GLMM -- 2.75 points | H14: ='Point Grid'!J13 -> Incomplete
A15: Q7 -- Fisher -- Rating Plan Equity -- 3.00 points | H15: ='Point Grid'!J14 -> Incomplete
A16: Q8 -- Bahnemann -- Excess Layer Inflation -- 3.50 points | H16: ='Point Grid'!J15 -> Incomplete
A17: Q9 -- ISO -- Calculate experience modification factor -- 4.00 points | H17: ='Point Grid'!J16 -> Incomplete
A18: Q10 -- Fisher -- Split Modification Formula -- 1.75 points | H18: ='Point Grid'!J17 -> Incomplete
A19: Q11 -- ISO -- Schedule Rating -- 2.75 points | H19: ='Point Grid'!J18 -> Incomplete
A20: Q12 -- Fisher -- Credibility Functions -- 3.00 points | H20: ='Point Grid'!J19 -> Incomplete
A21: Q13 -- Fisher -- Balanced Rating Plan -- 2.00 points | H21: ='Point Grid'!J20 -> Incomplete
A22: Q14 -- Fisher -- Large Dollar Deductible Premium -- 2.00 points | H22: ='Point Grid'!J21 -> Incomplete
A23: Q15 -- Fisher -- Table M and Large Dollar Deductible Premium -- 4.00 points | H23: ='Point Grid'!J22 -> Incomplete
A24: Q16 -- Fisher -- Retrospective Premium and Savings -- 4.00 points | H24: ='Point Grid'!J23 -> Incomplete
A25: Q17 -- Bahnemann -- Risk-adjusted ILFs -- 1.50 points | H25: ='Point Grid'!J24 -> Incomplete
A26: Q18 -- NCCI Experience Rating-- Calculate experience mod -- 3.00 points | H26: ='Point Grid'!J25 -> Incomplete
A27: Q19 -- Bahnemann -- Pricing with Straight Deductibles -- 2.50 points | H27: ='Point Grid'!J26 -> Incomplete
A28: Q20 -- NCCI Circular -- Policy Excess Ratio and Expected Claims -- 2.50 points | H28: ='Point Grid'!J27 -> Incomplete
A29: Q21 -- Bahnemann -- Mean Excess Claim Size -- 2.25 points | H29: ='Point Grid'!J28 -> Incomplete
A30: Q22 -- GLM -- Model Refinement -- 1.75 points | H30: ='Point Grid'!J29 -> Incomplete
A31: Q23 -- Holmes -- Lasso Credibility Coefficients -- 2.00 points | H31: ='Point Grid'!J30 -> Incomplete

Sheet 1
A1: 1 | B1: Incomplete | H1: Navigator | J1: Solution
I2: a.)
A3: Points | B3: The following information can be used to calculate the credibility assigned to the
A4: =INDEX('Point Grid'!B:B,MATCH('1'!A1,'Point Grid'!A:A,0)) -> 3.5 | B4: experience of a single private passenger car.
B6: Group | C6: Last Accident | D6: Earned Car Years | E6: Premium at Present B Rates | F6: Number of Claims
B7: A | C7: 3+ | D7: 671,000 | E7: 600,000,000 | F7: 60,000
B8: X | C8: 2 | D8: 553,000 | E8: 225,000,000 | F8: 25,000
B9: Y | C9: 1 | D9: 120,000 | E9: 93,000,000 | F9: 21,000
B10: B | C10: 0 | D10: M | E10: 50,000,000 | F10: 18,000
B11: Total | D11: =TEXT(SUM(D7:D9),"0,000")&" + M" -> 1,344,000 + M | E11: =SUM(E7:E10) -> 968,000,000 | F11: =SUM(F7:F10) -> 124,000
B13: You may assume the following:
B14: • High frequency territories are also high average premium territories.
B15: • Territory differentials are proper.
B16: • The total claim frequency for the entire class does not change from year to year.
A18: (a) | B18: Calculate M, the earned car years for Group B, given that the credibility for an insured that has
A19: =INDEX('Point Grid'!$C$8:$I$28,MATCH($A$1,'Point Grid'!$A$8:$A$28,0),MATCH(A18,'Point Grid'!$C$7:$I$7,0)) -> 2.5 | B19: had no claim-free years is equal to 0.167.
A22: (b) | B22: Calculate the credibility for the group of risks that have been claim free for two or more years.
A23: =INDEX('Point Grid'!$C$8:$I$28,MATCH($A$1,'Point Grid'!$A$8:$A$28,0),MATCH(A22,'Point Grid'!$C$7:$I$7,0)) -> 1

Sheet 2
A1: 2 | B1: Incomplete | H1: Navigator | J1: Solution
I2: a.)
A3: Points | B3: You are given the following output from a GLM to estimate the probability of a claim:
A4: =INDEX('Point Grid'!B:B,MATCH('2'!A1,'Point Grid'!A:A,0)) -> 2 | B4: • The actuary selected a Binomial distribution.
B5: • The actuary selected the logit link function.
B7: Parameter | C7: β
B8: Intercept | C8: -1.485
B10: Vehicle Body
B11: Coupe | C11: -0.881
B12: Roadster | C12: -1.047
B13: Sedan | C13: -1.175
B14: Station Wagon | C14: -1.083
B15: Truck | C15: -1.118
B16: Utility | C16: -1.330
B18: Driver Gender
B19: Male | C19: -0.025
B21: Driver Age
B22: ln(age) | C22: -0.05
B24: Territory
B25: B | C25: 0.094
B26: C | C26: 0.037
B27: D | C27: -0.101
A29: (a) | B29: Calculate the estimated probability of a claim for:
A30: =INDEX('Point Grid'!$C$8:$I$28,MATCH($A$1,'Point Grid'!$A$8:$A$28,0),MATCH(A29,'Point Grid'!$C$7:$I$7,0)) -> 2 | B30: • Driver Gender: Female
B31: • Driver Age: 25
B32: • Vehicle Body: Sedan
B33: • Territory: D

Sheet 3
A1: 3 | B1: Incomplete | H1: Navigator | J1: Solution
I2: a.)
A3: Points | B3: You are given a GLM which models liability claim size using the following explanatory variables:
A4: =INDEX('Point Grid'!B:B,MATCH('3'!A1,'Point Grid'!A:A,0)) -> 2
B5: • Vehicle price, which is a continuous variable model with a third order polynomial.
B6: • Average driver age, which is a continuous variable modeled with a first order polynomial.
B7: • Number of drivers, which is a categorical variable with four levels.
B8: • Gender, which is a categorical variable with two levels.
B9: • There is only one interaction in the model, which is between gender and average driver age.
A11: (a) | B11: Determine the maximum number of β parameters in this model.
A12: =INDEX('Point Grid'!$C$8:$I$28,MATCH($A$1,'Point Grid'!$A$8:$A$28,0),MATCH(A11,'Point Grid'!$C$7:$I$7,0)) -> 2

Sheet 4
A1: 4 | B1: Incomplete | G1: Navigator | I1: Solution
H2: a.)
A3: Points | B3: Three experience rating plans have been developed and you are trying to evaluate
A4: =INDEX('Point Grid'!B:B,MATCH('4'!A1,'Point Grid'!A:A,0)) -> 1.5 | B4: which is optimal. Each rating plan has been tested on four different risks.
B6: The following tables summarize the indicated modifications and the resulting errors.
B8: Plan 1
B9: Risk # | C9: Predicted Modification Factor | D9: Error
B10: 1 | C10: 1.2 | D10: 50%
B11: 2 | C11: 1.2 | D11: 45%
B12: 3 | C12: 0.7 | D12: 20%
B13: 4 | C13: 0.7 | D13: 30%
B15: Plan 2
B16: Risk # | C16: Predicted Modification Factor | D16: Error
B17: 5 | C17: 1.2 | D17: 8%
B18: 6 | C18: 1.2 | D18: -8%
B19: 7 | C19: 0.6 | D19: -22%
B20: 8 | C20: 0.6 | D20: 22%
B22: Plan 3
B23: Risk # | C23: Predicted Modification Factor | D23: Error
B24: 9 | C24: 1.4 | D24: 3%
B25: 10 | C25: 1.3 | D25: 1%
B26: 11 | C26: 0.75 | D26: -2%
B27: 12 | C27: 0.65 | D27: -5%
A29: (a) | B29: Which is the preferred plan based on the Meyers/Dorweiler criterion?
A30: =INDEX('Point Grid'!$C$8:$I$28,MATCH($A$1,'Point Grid'!$A$8:$A$28,0),MATCH(A29,'Point Grid'!$C$7:$I$7,0)) -> 1.5 | B30: Which is the preferred plan based on the mean squared error criterion?
B31: Explain your answer to each part above.

Sheet 5
A1: 5 | B1: Incomplete | G1: Navigator | I1: Solution
H2: a.)
A3: Points | B3: A multi-dimensional credibility technique has been developed to predict claim frequencies
A4: =INDEX('Point Grid'!B:B,MATCH('5'!A1,'Point Grid'!A:A,0)) -> 1.5 | B4: for permanent total (PT) claims.
B5: • Seven years of data were collected.
B6: • The technique produced a raw predicted relativity based on the oldest five years.
B7: • The most recent two years were used as the holdout sample.
B8: • The sample means are normalized within a hazard group.
B10: Quintile | C10: Holdout Sample Relativity | D10: Prediction Based on Raw | E10: Prediction Based on Credibility Procedure
B11: 1 | C11: 0.55 | D11: 0.4 | E11: 0.45
B12: 2 | C12: 0.9 | D12: 0.6 | E12: 0.7
B13: 3 | C13: 1.1 | D13: 1.05 | E13: 1.15
B14: 4 | C14: 1.25 | D14: 1.5 | E14: 1.3
B15: 5 | C15: 1.5 | D15: 2.5 | E15: 1.9
A17: (a) | B17: Using the sum of squared error, demonstrate whether the multi-dimensional credibility
A18: =INDEX('Point Grid'!$C$8:$I$28,MATCH($A$1,'Point Grid'!$A$8:$A$28,0),MATCH(A17,'Point Grid'!$C$7:$I$7,0)) -> 1.5 | B18: technique produces an improved estimate over the estimates produced using the raw relativities
B19: and the total hazard group relativities.

Sheet 6
A1: 6 | B1: Incomplete | I1: Navigator | K1: Solution
J2: a.)
A3: Points | B3: You are testing the addition of a new categorical variable into an existing GLM, and are
B4: given the following information:
B6: • A is the change in AIC and B is the change in BIC after adding the new variable.
B7: • B > A + 100
B9: 5,000 | C9: Number of observations in the model
A11: (a) | B11: Calculate the minimum possible number of levels in the new categorical variable.
A12: =INDEX('Point Grid'!$C$8:$I$28,MATCH($A$1,'Point Grid'!$A$8:$A$28,0),MATCH(A11,'Point Grid'!$C$7:$I$7,0)) -> 1.5
B15: Suppose instead the new categorical is added as a random effect, turning the GLM into a
B16: GLMM.
A17: (b) | B17: Identify the minimum possible number of parameters added to the model when the new
A18: =INDEX('Point Grid'!$C$8:$I$28,MATCH($A$1,'Point Grid'!$A$8:$A$28,0),MATCH(A17,'Point Grid'!$C$7:$I$7,0)) -> 0.25 | B18: categorical variable is introduced.
B21: A colleague suggests the GLM approach is better than the GLMM approach because the
B22: GLM coefficients are greater in magnitude than those produced by the GLMM for the
B23: new categorical variable.
A25: (c) | B25: Briefly describe an issue presented by the GLM approach and explain how the
A26: =INDEX('Point Grid'!$C$8:$I$28,MATCH($A$1,'Point Grid'!$A$8:$A$28,0),MATCH(A25,'Point Grid'!$C$7:$I$7,0)) -> 1 | B26: GLMM approach is an improvement.

Sheet 7
A1: 7 | B1: Incomplete | H1: Navigator | J1: Solution
I2: a.)
A3: Points | B3: The following information was taken from two different experience rating plans:
A4: =INDEX('Point Grid'!B:B,MATCH('7'!A1,'Point Grid'!A:A,0)) -> 3
C5: Experience Modification | E5: Experience Data
B6: Insured | C6: Plan A | D6: Plan B | E6: Manual Premium | F6: Losses
B7: 1 | C7: 0.8 | D7: 1.03 | E7: 75,000 | F7: 60,000
B8: 2 | C8: 0.85 | D8: 0.69 | E8: 75,000 | F8: 58,000
B9: 3 | C9: 0.90 | D9: 0.75 | E9: 75,000 | F9: 61,000
B10: 4 | C10: 0.91 | D10: 0.89 | E10: 125,000 | F10: 104,000
B11: 5 | C11: 0.96 | D11: 0.87 | E11: 125,000 | F11: 116,000
A13: (a) | B13: Demonstrate whether Plan A or Plan B appears to be more equitable.
A14: =INDEX('Point Grid'!$C$8:$I$28,MATCH($A$1,'Point Grid'!$A$8:$A$28,0),MATCH(A13,'Point Grid'!$C$7:$I$7,0)) -> 2.5
A17: (b) | B17: Demonstrate whether Plan A or Plan B gives too much credit for good experience.
A18: =INDEX('Point Grid'!$C$8:$I$28,MATCH($A$1,'Point Grid'!$A$8:$A$28,0),MATCH(A17,'Point Grid'!$C$7:$I$7,0)) -> 0.5
I32: b.)

Sheet 8
A1: 8 | B1: Incomplete | E1: Navigator | G1: Solution
F2: a.)
A3: Points | B3: A portfolio of insurance policies currently has the size of loss distribution shown below:
A4: =INDEX('Point Grid'!B:B,MATCH('8'!A1,'Point Grid'!A:A,0)) -> 3.5 | B4: Occurrence Limit | C4: Probability that a Claim is less than the Occurrence Limit | D4: Expected Limited Severity for the Occurrence Limit
B5: 100,000 | C5: 67.3% | D5: $48,000
B6: 125,000 | C6: 68.9% | D6: $59,000
B7: 150,000 | C7: 71.2% | D7: $63,500
B8: 175,000 | C8: 71.2% | D8: $68,000
B9: 200,000 | C9: 81.8% | D9: $73,500
B10: 225,000 | C10: 81.9% | D10: $90,500
B11: 250,000 | C11: 86.4% | D11: $120,000
B12: 300,000 | C12: 88.4% | D12: $123,000
B13: 400,000 | C13: 89.5% | D13: $124,000
B14: 500,000 | C14: 90.3% | D14: $130,500
B15: 750,000 | C15: 90.3% | D15: $135,000
B16: 800,000 | C16: 93.0% | D16: $140,500
B17: 900,000 | C17: 95.7% | D17: $153,000
B18: 1,000,000 | C18: 97.2% | D18: $159,500
B19: 1,250,000 | C19: 97.4% | D19: $178,000
B20: 1,500,000 | C20: 97.9% | D20: $186,000
B22: $250,000 | C22: "Large Loss" threshold for the insurer today
B23: 50 | C23: It's estimated the portfolio policies will generate this many
C24: "large losses" during the next two years.
B26: The actuary estimates the following:
B27: 11.8% | C27: Annual claim severity inflationary trend
B28: 20% | C28: Expected annual exposure growth
A30: (a) | B30: Calculate the expected number of claims that exceed the large loss threshold in two years time.
A31: =INDEX('Point Grid'!$C$8:$I$28,MATCH($A$1,'Point Grid'!$A$8:$A$28,0),MATCH(A30,'Point Grid'!$C$7:$I$7,0)) -> 1.5
A34: (b) | B34: Calculate the expected losses for this portfolio in the layer $1,000,000 excess of $250,000 after
A35: =INDEX('Point Grid'!$C$8:$I$28,MATCH($A$1,'Point Grid'!$A$8:$A$28,0),MATCH(A34,'Point Grid'!$C$7:$I$7,0)) -> 2 | B35: two years.

Sheet 9
A1: 9 | B1: Incomplete | H1: Navigator | K1: Solution
J2: a.)
A3: Points | B3: Consider the following loss experience as of June 30, 2021 under a claims-made commercial general
A4: =INDEX('Point Grid'!B:B,MATCH('9'!A1,'Point Grid'!A:A,0)) -> 4 | B4: liability policy:
B6: Policy Year | C6: Claim Number | D6: Basic Limit Indemnity | E6: ALAE
B7: 2016 | C7: 1 | D7: $25,000 | E7: $1,000
B8: 2017 | C8: 2 | D8: $8,500 | E8: $0
B9: 2018 | C9: 3 | D9: $100,000 | E9: $55,000
B10: 2018 | C10: 4 | D10: $55,000 | E10: $5,000
B11: 2020 | C11: 5 | D11: $0 | E11: $150,000
B12: 2020 | C12: 6 | D12: $32,000 | E12: $800
B14: The policy being rated has the following characteristics:
B15: • The policy always runs from January 1st through December 31st each year.
B16: • The company has been with the same insurer in a claims-made program for over 15 years.
B17: • The company's annual basic limit premium is:
B18: $100,000 | C18: Premises/Operations
B19: $25,000 | C19: Products/Completed Operations
B20: 68% | C20: Expected Loss Ratio
A22: (a) | B22: Calculate the experience modification factor for the policy effective between January 1 and
A23: =INDEX('Point Grid'!$C$8:$I$28,MATCH($A$1,'Point Grid'!$A$8:$A$28,0),MATCH(A22,'Point Grid'!$C$7:$I$7,0)) -> 4 | B23: December 31, 2022.
B25: You may use the following information below:
C26: Occurrence | D26: Claims-Made Year in Program (YIP)
B27: Subline | C27: Policy | D27: Mature | E27: Fourth | F27: Third | G27: Second | H27: First
B28: Prem/Ops | C28: 1.00 | D28: 1.05 | E28: 1.14 | F28: 1.20 | G28: 1.32 | H28: 1.62
B29: Products | C29: 1.00 | D29: 1.24 | E29: 1.51 | F29: 1.59 | G29: 2.03 | H29: 2.39
B30: Table 13.B
C32: Occurrence | D32: Claims-Made Year in Program (YIP)
B33: Subline | C33: Policy | D33: Mature | E33: Fourth | F33: Third | G33: Second | H33: First
B34: Prem/Ops | C34: 1.00 | D34: 0.94 | E34: 0.84 | F34: 0.78 | G34: 0.67 | H34: 0.47
B35: Products | C35: 1.00 | D35: 0.72 | E35: 0.49 | F35: 0.43 | G35: 0.35 | H35: 0.22
B36: Table 13.C
B38: Experience | D38: Factors for
B39: Period Year | C39: Subline | D39: Rule 5.B | E39: Rule 5.C
B40: Latest | C40: Prem/Ops | D40: 0.916 | E40: 0.949
C41: Products | D41: 0.882 | E41: 0.914
B42: 2nd Latest | C42: Prem/Ops | D42: 0.876 | E42: 0.919
C43: Products | D43: 0.828 | E43: 0.869
B44: 3rd Latest | C44: Prem/Ops | D44: 0.839 | E44: 0.887
C45: Products | D45: 0.777 | E45: 0.821
B46: Table 14
B48: CSLC | C48: Credibility | D48: EER | E48: MSL
B49: 194,380 - 203,002 | C49: 0.36 | D49: 0.911 | E49: 147,550
B50: 203,003 - 211,901 | C50: 0.37 | D50: 0.914 | E50: 150,450
B51: 211,902 - 221,089 | C51: 0.38 | D51: 0.917 | E51: 153,400
B52: 221,090 - 230,581 | C52: 0.39 | D52: 0.920 | E52: 156,450
B53: 230,582 - 240,392 | C53: 0.40 | D53: 0.923 | E53: 159,600
B54: Table 16

Sheet 10
A1: 10 | B1: Incomplete | F1: Navigator | H1: Solution
G2: a.)
A3: Points | B3: Answer the following in the context of the NCCI experience rating formula.
A4: =INDEX('Point Grid'!B:B,MATCH('10'!A1,'Point Grid'!A:A,0)) -> 1.75
A6: (a) | B6: Explain why splitting the formula into primary and excess components is
A7: =INDEX('Point Grid'!$C$8:$I$28,MATCH($A$1,'Point Grid'!$A$8:$A$28,0),MATCH(A6,'Point Grid'!$C$7:$I$7,0)) -> 0.5 | B7: preferable for Workers' Compensation risks.
A10: (b) | B10: Briefly describe the function of the primary component of the formula.
A11: =INDEX('Point Grid'!$C$8:$I$28,MATCH($A$1,'Point Grid'!$A$8:$A$28,0),MATCH(A10,'Point Grid'!$C$7:$I$7,0)) -> 0.25
A14: (c) | B14: Briefly describe why the excess component is capped.
A15: =INDEX('Point Grid'!$C$8:$I$28,MATCH($A$1,'Point Grid'!$A$8:$A$28,0),MATCH(A14,'Point Grid'!$C$7:$I$7,0)) -> 0.25
A18: (d) | B18: Discuss how using full credibility conflicts with one goal of experience rating.
A19: =INDEX('Point Grid'!$C$8:$I$28,MATCH($A$1,'Point Grid'!$A$8:$A$28,0),MATCH(A18,'Point Grid'!$C$7:$I$7,0)) -> 0.75

Sheet 11
A1: 11 | B1: Incomplete | G1: Navigator | I1: Solution
H2: a.)
A3: Points
A4: =INDEX('Point Grid'!B:B,MATCH('11'!A1,'Point Grid'!A:A,0)) -> 2.75 | B4: ABC Incorporated is a theme park operator who is purchasing a Commercial General Liability
B5: policy with an effective date of January 1, 2022. Assume ABC Incorporated is eligible for both
B6: experience and schedule rating, and each scenario listed below is independent.
B8: For each scenario identify whether a debit or credit should apply to the schedule rating,
B9: suggest an appropriate figure and state the maximum possible debit or credit that could
B10: be applied.
A12: (a) | B12: In 2017, ABC Incorporated implemented a mandatory one-month training program for all
A13: =INDEX('Point Grid'!$C$8:$I$28,MATCH($A$1,'Point Grid'!$A$8:$A$28,0),MATCH(A12,'Point Grid'!$C$7:$I$7,0)) -> 0.5 | B13: new hires that teaches equipment maintenance, safety programs, and first aid.
A16: (b) | B16: In 2021, ABC Incorporated added a full-time, on-site doctor in each of its locations and trained
A17: =INDEX('Point Grid'!$C$8:$I$28,MATCH($A$1,'Point Grid'!$A$8:$A$28,0),MATCH(A16,'Point Grid'!$C$7:$I$7,0)) -> 0.5 | B17: all employees in emergency first aid.
A20: (c) | B20: Due to an increase in visitors in 2021, ABC Incorporated reduced ride downtimes and hired
A21: =INDEX('Point Grid'!$C$8:$I$28,MATCH($A$1,'Point Grid'!$A$8:$A$28,0),MATCH(A20,'Point Grid'!$C$7:$I$7,0)) -> 0.5 | B21: inexperienced employees to staff its locations. ABC Incorpated usually only hires employees
B22: with at least three years of experience.
A24: (d) | B24: ABC Incorporated began replacing all equipment over 5-years old in each of its locations
A25: =INDEX('Point Grid'!$C$8:$I$28,MATCH($A$1,'Point Grid'!$A$8:$A$28,0),MATCH(A24,'Point Grid'!$C$7:$I$7,0)) -> 0.5 | B25: in the second quarter of 2021. The upgrades will be completed by Q1 2022.
A28: (e) | B28: In order to accommodate more visitors in 2022, ABC Incorporated has increased the maximum
A29: =INDEX('Point Grid'!$C$8:$I$28,MATCH($A$1,'Point Grid'!$A$8:$A$28,0),MATCH(A28,'Point Grid'!$C$7:$I$7,0)) -> 0.75 | B29: capacity of its indoor rides across all locations without making any physical changes.
B30: No changes are made to outdoor rides.

Sheet 12
A1: 12 | B1: Incomplete | G1: Navigator | I1: Solution
H2: a.)
A3: Points
A4: =INDEX('Point Grid'!B:B,MATCH('12'!A1,'Point Grid'!A:A,0)) -> 3
A6: (a) | B6: Using words, identify the three criteria that define an effective credibility function
A7: =INDEX('Point Grid'!$C$8:$I$28,MATCH($A$1,'Point Grid'!$A$8:$A$28,0),MATCH(A6,'Point Grid'!$C$7:$I$7,0)) -> 1 | B7: for experience rating.
A10: (b) | B10: Using equations, describe the three criteria from part (a), making sure to
A11: =INDEX('Point Grid'!$C$8:$I$28,MATCH($A$1,'Point Grid'!$A$8:$A$28,0),MATCH(A10,'Point Grid'!$C$7:$I$7,0)) -> 1 | B11: define all notation used.
A14: (c) | B14: For each of the three criteria, briefly explain whether or not the following credibility function
A15: =INDEX('Point Grid'!$C$8:$I$28,MATCH($A$1,'Point Grid'!$A$8:$A$28,0),MATCH(A14,'Point Grid'!$C$7:$I$7,0)) -> 1 | B15: satisfies the criterion.
C16: Expected Losses Between | D16: Credibility
C17: $0 to $5,000 | D17: 0%
C18: $5,001 to $10,000 | D18: 35%
C19: $10,001 to $25,000 | D19: 80%
C20: $25,001 or more | D20: 100%

Sheet 13
A1: 13 | B1: Incomplete | G1: Navigator | I1: Solution
H2: a.)
A3: Points | B3: The following information applies to a balanced retrospectively rated policy:
A4: =INDEX('Point Grid'!B:B,MATCH('13'!A1,'Point Grid'!A:A,0)) -> 2
B5: $26,000 | C5: Standard Premium
B6: $24,000 | C6: Guaranteed Cost Premium
B7: $20,000 | C7: Provision for Losses and Expenses excluding Taxes
B8: $15,000 | C8: Expected Losses
B9: 1.15 | C9: Loss Conversion Factor
B10: 0.06 | C10: Charge for Maximum
B11: 0.57 | C11: Savings for Maximum
B12: 0.685 | C12: Charge for Minimum
B13: 0.019 | C13: Savings for Minimum
A15: (a) | B15: Determine the tax multiplier.
A16: =INDEX('Point Grid'!$C$8:$I$28,MATCH($A$1,'Point Grid'!$A$8:$A$28,0),MATCH(A15,'Point Grid'!$C$7:$I$7,0)) -> 0.5
A19: (b) | B19: Determine the minimum premium ratio as a percentage of standard premium.
A20: =INDEX('Point Grid'!$C$8:$I$28,MATCH($A$1,'Point Grid'!$A$8:$A$28,0),MATCH(A19,'Point Grid'!$C$7:$I$7,0)) -> 0.5
A23: (c) | B23: Calculate the converted insurance charge in dollars.
A24: =INDEX('Point Grid'!$C$8:$I$28,MATCH($A$1,'Point Grid'!$A$8:$A$28,0),MATCH(A23,'Point Grid'!$C$7:$I$7,0)) -> 0.5
A27: (d) | B27: Determine the loss ratio at minimum.
A28: =INDEX('Point Grid'!$C$8:$I$28,MATCH($A$1,'Point Grid'!$A$8:$A$28,0),MATCH(A27,'Point Grid'!$C$7:$I$7,0)) -> 0.5

Sheet 14
A1: 14 | B1: Incomplete | E1: Navigator | G1: Solution
F2: a.)
A3: Points | B3: Using the information below, calculate the premium for a $50,000 deductible policy.
A4: =INDEX('Point Grid'!B:B,MATCH('14'!A1,'Point Grid'!A:A,0)) -> 2
B5: $314,200 | C5: Standard Premium
A6: (a) | B6: 65% | C6: Expected Loss ratio
A7: =INDEX('Point Grid'!$C$8:$I$28,MATCH($A$1,'Point Grid'!$A$8:$A$28,0),MATCH(A6,'Point Grid'!$C$7:$I$7,0)) -> 2 | B7: 10% | C7: ALAE as a percentage of loss
B8: 18% | C8: Commission as a percentage of premium
B9: 8% | C9: Other variable expenses
B10: $22,000 | C10: Fixed expenses
B11: 0.32 | C11: Loss Elimination Ratio at a $50,000 deductible

Sheet 15
A1: 15 | B1: Incomplete | G1: Navigator | I1: Solution
H2: a.)
A3: Points | B3: An insurer writes five identical workers compensation risks for one year and observes
A4: =INDEX('Point Grid'!B:B,MATCH('15'!A1,'Point Grid'!A:A,0)) -> 4 | B4: the following:
B6: $1,250,000 | C6: Standard Premium for each risk
B7: 6% | C7: General Overhead Expense as a Percent of Standard Premium
B8: 4.50% | C8: Credit Risk Charge as a Percent of Standard Premium
B9: 11% | C9: Expected ULAE as a Percent of Loss and ALAE
B10: 4% | C10: Loss Based Assessment as a Percent of Loss and ALAE
B11: 10% | C11: Excess Ratio for a $250,000 Deductible (% of Loss and ALAE)
B12: 8% | C12: Acquisition Expenses as a Percent of Standard Premium
B13: 3% | C13: Premium Tax as a Percent of Standard Premium
B14: 5% | C14: Profit Load as a Percent of Net Premium
B16: Actual losses for each risk are as follows:
B17: Risk # | C17: Actual Loss & ALAE
B18: 1 | C18: $400,000
B19: 2 | C19: $800,000
B20: 3 | C20: $1,000,000
B21: 4 | C21: $1,200,000
B22: 5 | C22: $1,600,000
A24: (a) | B24: Construct a Table M for this book of business by displaying the insurance charges and savings
A25: =INDEX('Point Grid'!$C$8:$I$28,MATCH($A$1,'Point Grid'!$A$8:$A$28,0),MATCH(A24,'Point Grid'!$C$7:$I$7,0)) -> 2 | B25: for entry ratios from 0.00 to 1.60 in increments of 0.20.
A28: (b) | B28: For any risk above, estimate the prospective premium for a large dollar deductible (LDD) policy with
A29: =INDEX('Point Grid'!$C$8:$I$28,MATCH($A$1,'Point Grid'!$A$8:$A$28,0),MATCH(A28,'Point Grid'!$C$7:$I$7,0)) -> 2 | B29: a per-occurrence deductible of $250,000 and an annual aggregate deductible of $1,260,000.

Sheet 16
A1: 16 | B1: Incomplete | G1: Navigator | I1: Solution
H2: a.)
A3: Points | B3: The following information applies to a company's retrospectively rated Workers'
A4: =INDEX('Point Grid'!B:B,MATCH('16'!A1,'Point Grid'!A:A,0)) -> 4 | B4: Compensation policy:
B5: • Its losses are expected to be uniformly distributed on [0, 1,000,000].
B7: $750,000 | C7: Losses at maximum premium
B8: $225,000 | C8: Losses at minimum premium
B9: 1.15 | C9: Loss conversion factor
B10: $130,000 | C10: Basic Premium
B11: 5% | C11: Tax Rate
A13: (a) | B13: Calculate the expected retrospective premium for this Workers' Compensation policy.
A14: =INDEX('Point Grid'!$C$8:$I$28,MATCH($A$1,'Point Grid'!$A$8:$A$28,0),MATCH(A13,'Point Grid'!$C$7:$I$7,0)) -> 2
A17: (b) | B17: The company is considering whether to implement a fraud detection device.
A18: =INDEX('Point Grid'!$C$8:$I$28,MATCH($A$1,'Point Grid'!$A$8:$A$28,0),MATCH(A17,'Point Grid'!$C$7:$I$7,0)) -> 2 | B18: This addition would result in a shift in the loss distribution to a uniform distribution
B19: between [0, 800,000].
B20: Assuming no other plan parameters change, calculate the resulting premium savings.

Sheet 17
A1: 17 | B1: Incomplete | G1: Navigator | I1: Solution
H2: a.)
A3: Points | B3: Given the following information about an insurer's book of business:
A4: =INDEX('Point Grid'!B:B,MATCH('17'!A1,'Point Grid'!A:A,0)) -> 1.5
B5: $10,000 | C5: Basic limit | E5: Claim Size | F5: Probability
B6: $250,000 | C6: Policy limit | E6: $250 | F6: 0.1768
B7: $500 | C7: Average ALAE | E7: $2,500 | F7: 0.5709
B8: 2.0% | C8: ULAE | E8: $15,000 | F8: 0.1565
B9: 4.0 | C9: Expected Claim Count | E9: $75,000 | F9: 0.0958
B10: 15.0% | C10: ISO k-value
B12: • Claim counts are assumed to follow a Poisson distribution.
B13: • The insurer follows the ISO approach to load their ILFs for risk.
A15: (a) | B15: Calculate the ILF at the policy limit with and without including the risk load.
A16: =INDEX('Point Grid'!$C$8:$I$28,MATCH($A$1,'Point Grid'!$A$8:$A$28,0),MATCH(A15,'Point Grid'!$C$7:$I$7,0)) -> 1.5

Sheet 18
A1: 18 | B1: Incomplete | G1: Navigator | J1: Solution
I2: a.)
A3: Points | B3: An insured is subject to experience rating under the National Council on Compensation Insurance
A4: =INDEX('Point Grid'!B:B,MATCH('18'!A1,'Point Grid'!A:A,0)) -> 3 | B4: (NCCI) Experience Rating Plan Manual for Workers Compensation and Employers Liability Insurance.
B6: The following information about the insured is given:
B7: $4,000,000 | C7: Payroll for the experience period
B8: AL | C8: State
B9: 4279 | C9: Class
B10: $5,000 | C10: Primary/Excess split point
B11: $167,000 | C11: State per Claim Accident Limitation
B12: $334,000 | C12: State Multiple Claim Accident Limitation
B13: 6.70 | C13: G value
B15: The following claims apply to the experience period.
B16: Excluding Medical Only Losses | E16: Medical Only Losses
B17: Claim # | C17: Indemnity | E17: Claim # | F17: Indemnity
B18: 1 | C18: $2,000 | E18: 7 | F18: $500
B19: 2 | C19: $2,500 | E19: 8 | F19: $1,750
B20: 3 | C20: $4,000 | E20: 9 | F20: $3,000
B21: 4 | C21: $5,000 | E21: 10 | F21: $25,000
B22: 5 | C22: $25,000
B23: 6* | C23: $350,000
B24: * Only one person was injured in claim 6.
B26: You may use the following tables to answer the question below.
B27: Class Code | C27: ELR | D27: D Ratio
B28: 4263 | C28: 1.01 | D28: 0.22
B29: 4273 | C29: 0.94 | D29: 0.21
B30: 4279 | C30: 1.17 | D30: 0.20
B32: Expected Losses | C32: Weighting Value | E32: Expected Losses | F32: Ballast Value
B33: 31,844 to 47,399 | C33: 0.10 | E33: 0 to 36,038 | F33: 16,750
B34: 47,400 to 61,236 | C34: 0.11 | E34: 36,039 to 62,025 | F34: 20,100
B35: 61,237 to 74,710 | C35: 0.12 | E35: 62,026 to 91,884 | F35: 23,450
A37: (a) | B37: Calculate the experience modification for this insured.
A38: =INDEX('Point Grid'!$C$8:$I$28,MATCH($A$1,'Point Grid'!$A$8:$A$28,0),MATCH(A37,'Point Grid'!$C$7:$I$7,0)) -> 2.5
A41: (b) | B41: Select all true statements below:
A42: =INDEX('Point Grid'!$C$8:$I$28,MATCH($A$1,'Point Grid'!$A$8:$A$28,0),MATCH(A41,'Point Grid'!$C$7:$I$7,0)) -> 0.5
B43: i.) The state per-accident and multiple claim accident limits do not apply to disease losses.
B44: ii.) Policy level disease losses are capped at 3*(State per-claim accident limit) + 120% Expected Loss.
B45: iii.) Primary disease losses are capped at 2x the primary/excess split point.
B46: iv.) Primary disease losses are capped at 2x primary/excess split point + 40% Expected Primary Loss.
B47: v.) Disease losses do not include losses due to occupational exposures such as exposure to asbestos.

Sheet 19
A1: 19 | B1: Incomplete | I1: Navigator | K1: Solution
J2: a.)
A3: Points
A4: =INDEX('Point Grid'!B:B,MATCH('19'!A1,'Point Grid'!A:A,0)) -> 2.5 | B4: Given the following information about an insurer's book of business which
B5: utilizes straight deductibles:
B7: 0.0003 | C7: Ground-up claim frequency
B8: 100,000 | C8: Basic policy limit
B9: 12,310 | C9: Basic limit expected loss
B10: 150 | C10: ALAE
B11: 12.0% | C11: ULAE
B13: $250,000 | C13: Policy limit
B14: $1,000 | C14: Policy Deductible
B15: $4,684 | C15: Policy Premium
B17: Deductible | C17: E[X; d] | D17: FX(d) | F17: Limit | G17: ILF
B18: 0 | C18: 0 | D18: 0 | F18: 100,000 | G18: 0.667
B19: 1,000 | C19: 659 | D19: 0.4847 | F19: 250,000 | G19: 1.000
B20: 2,000 | C20: 1,111 | D20: 0.5989 | F20: 500,000 | G20: 1.167
B21: 3,000 | C21: 1,478 | D21: 0.6625 | F21: 1,000,000 | G21: 1.267
B22: 5,000 | C22: 2,071 | D22: 0.7364
B23: 10,000 | C23: 3,144 | D23: 0.8215
A25: (a) | B25: Calculate the loss elimination ratio, modified frequency, severity and pure premium
A26: =INDEX('Point Grid'!$C$8:$I$28,MATCH($A$1,'Point Grid'!$A$8:$A$28,0),MATCH(A25,'Point Grid'!$C$7:$I$7,0)) -> 1.5 | B26: for each deductible in the table above.
A29: (b) | B29: Calculate the premium for a policy with a $1,000,000 limit and $2,000 deductible.
A30: =INDEX('Point Grid'!$C$8:$I$28,MATCH($A$1,'Point Grid'!$A$8:$A$28,0),MATCH(A29,'Point Grid'!$C$7:$I$7,0)) -> 1

Sheet 20
A1: 20 | B1: Incomplete | I1: Navigator | L1: Solution
K2: a.)
A3: Points | B3: Given the following information about a retrospectively rated Workers' Compensation policy which is
A4: =INDEX('Point Grid'!B:B,MATCH('20'!A1,'Point Grid'!A:A,0)) -> 2.5 | B4: also subject to experience rating.
B6: 0.95 | C6: Experience Modification Factor | H6: Table of Policy Excess Ratio Ranges
B7: 66% | C7: Expected Unlimited Loss Ratio | H7: Sub-table | I7: Excess Ratio Range
H8: 7 | I8: 0.146 - 0.181
C9: Hazard | D9: Manual | E9: Excess Ratio | F9: Avg. Cost | H9: 8 | I9: 0.182 - 0.221
B10: State | C10: Group | D10: Premium | E10: at Loss Limit | F10: per Case | H10: 9 | I10: 0.222 - 0.269
B11: X | C11: A | D11: 70,000 | E11: 0.72 | F11: 25,000 | H11: 10 | I11: 0.270 - 0.316
B12: Y | C12: B | D12: 120,000 | E12: 0.05 | F12: 17,000 | H12: 11 | I12: 0.317 - 0.358
B13: Z | C13: C | D13: 135,000 | E13: 0.59 | F13: 20,000 | H13: 12 | I13: 0.359 - 0.420
H14: 13 | I14: 0.421 - 0.484
A16: (a) | B16: Calculate the policy excess ratio and associated sub-table to use when rating this policy under the
A17: =INDEX('Point Grid'!$C$8:$I$28,MATCH($A$1,'Point Grid'!$A$8:$A$28,0),MATCH(A16,'Point Grid'!$C$7:$I$7,0)) -> 0.5 | B17: NCCI Retrospective rating plan.
A20: (b) | B20: Calculate the total number of expected claims for this policy.
A21: =INDEX('Point Grid'!$C$8:$I$28,MATCH($A$1,'Point Grid'!$A$8:$A$28,0),MATCH(A20,'Point Grid'!$C$7:$I$7,0)) -> 0.5
A24: (c) | B24: Organize the following according to whether or not they are part of the policy's basic premium.
A25: =INDEX('Point Grid'!$C$8:$I$28,MATCH($A$1,'Point Grid'!$A$8:$A$28,0),MATCH(A24,'Point Grid'!$C$7:$I$7,0)) -> 0.75
B28: Included in Basic Premium | E28: Not Part of Basic Premium
A36: (d) | B36: Identify two advantages and one disadvantage of using the table of aggregate loss factors over the
A37: =INDEX('Point Grid'!$C$8:$I$28,MATCH($A$1,'Point Grid'!$A$8:$A$28,0),MATCH(A36,'Point Grid'!$C$7:$I$7,0)) -> 0.75 | B37: previous table of net insurance charges.

Sheet 21
A1: 21 | B1: Incomplete | H1: Navigator | J1: Solution
I2: a.)
A3: Points | B3: An actuary wishes to fit a claim size distribution to a sample of 1,000 claims.
A4: =INDEX('Point Grid'!B:B,MATCH('21'!A1,'Point Grid'!A:A,0)) -> 2.25
C5: Size Group | D5: # Claims | E5: Total Loss | F5: Severity
C6: 0 – 100 | D6: 99 | E6: 5,000 | F6: =E6/D6 -> 51
C7: 101 – 500 | D7: 293 | E7: 84,000 | F7: =E7/D7 -> 287
C8: 501 – 1,000 | D8: 221 | E8: 162,000 | F8: 733
C9: 1,001 – 2,000 | D9: 213 | E9: 305,000 | F9: 1,432
C10: 2,001 – 4,000 | D10: 127 | E10: 354,000 | F10: 2,787
C11: 4,001 – 5,000 | D11: 20 | E11: 91,000 | F11: 4,550
C12: 5,001 – 10,000 | D12: 27 | E12: 193,000 | F12: 7,148
C13: Total | D13: =SUM(D6:D12) -> 1,000 | E13: =SUM(E6:E12) -> 1,194,000 | F13: =E13/D13 -> 1,194
A15: (a) | B15: Calculate the empirical mean excess claim size distribution and identify the distribution.
A16: =INDEX('Point Grid'!$C$8:$I$28,MATCH($A$1,'Point Grid'!$A$8:$A$28,0),MATCH(A15,'Point Grid'!$C$7:$I$7,0)) -> 1
A19: (b) | B19: Using the distribution identified in part a.) above, calculate the empirical parameters
A20: =INDEX('Point Grid'!$C$8:$I$28,MATCH($A$1,'Point Grid'!$A$8:$A$28,0),MATCH(A19,'Point Grid'!$C$7:$I$7,0)) -> 1 | B20: associated with that distribution.
A23: (c) | B23: Identify a condition on the claim data set in order for the above analysis to produce
A24: =INDEX('Point Grid'!$C$8:$I$28,MATCH($A$1,'Point Grid'!$A$8:$A$28,0),MATCH(A23,'Point Grid'!$C$7:$I$7,0)) -> 0.25 | B24: an accurate distribution.

Sheet 22
A1: 22 | B1: Incomplete | F1: Navigator | I1: Solution
H2: b.)
A3: Points | B3: An actuary is about to peer review a GLM. They are refreshing their memory on some model
A4: =INDEX('Point Grid'!B:B,MATCH('22'!A1,'Point Grid'!A:A,0)) -> 1.75 | B4: refinement techniques.
A7: (a) | B7: Match the following descriptions to the correct techniques.
A8: =INDEX('Point Grid'!$C$8:$I$29,MATCH($A$1,'Point Grid'!$A$8:$A$29,0),MATCH(A7,'Point Grid'!$C$7:$I$7,0)) -> 0.75
B9: Cook's distance
B12: Cross validation
B15: Bootstrapping
A28: (b) | B28: Identify a weakness of graphically analyzing deviance residuals and briefly describe how to
A29: =INDEX('Point Grid'!$C$8:$I$29,MATCH($A$1,'Point Grid'!$A$8:$A$29,0),MATCH(A28,'Point Grid'!$C$7:$I$7,0)) -> 0.5 | B29: overcome it.
A32: (c) | B32: Identify all true statements below:
A33: =INDEX('Point Grid'!$C$8:$I$29,MATCH($A$1,'Point Grid'!$A$8:$A$29,0),MATCH(A32,'Point Grid'!$C$7:$I$7,0)) -> 0.5
B34: i.) Deviance residuals should have no predictable pattern.
B35: ii.) The shape of the deviance residuals should match the choice of GLM distribution.
B36: iii.) Deviance residuals should be normally distributed with constant variance.
B37: iv.) When plotting deviance residuals, significant deviations from normality
B38: imply the model fit is good.
B39: v.) Both ends of a q-q plot for deviance residuals lie above the line of equality. This means the
B40: chosen GLM distribution was too skewed to the right.

Sheet 23
A1: 23 | B1: Incomplete | G1: Navigator | J1: Solution
A3: Points | B3: An actuary has built a GLM for a countrywide rating plan.
A4: =INDEX('Point Grid'!B:B,MATCH('23'!A1,'Point Grid'!A:A,0)) -> 2 | B4: They are using a lasso credibility model with a log-link function to produce
B5: a rating plan for one of their mid-size states.
B6: The actuary uses the relativities from the countrywide GLM as the offsets.
A8: (a) | B8: Using the information below, construct the table of rating factors for
A9: =INDEX('Point Grid'!$C$8:$I$30,MATCH($A$1,'Point Grid'!$A$8:$A$30,0),MATCH(A8,'Point Grid'!$C$7:$I$7,0)) -> 0.5 | B9: the VehicleType rating variable for the mid-size state.
D11: GLM | F11: βj | G11: Mid-Size
B12: VehicleType | D12: Relativity | F12: Coefficients | G12: Exposures
B13: Sedan | D13: 1.000 | F13: 0.0000 | G13: 250,000
B14: Van | D14: 0.691 | F14: 0.2187 | G14: 15,000
B15: SUV | D15: 1.187 | F15: -0.0631 | G15: 140,000
B16: Luxury SUV | D16: 1.285 | F16: 0.0192 | G16: 53,000
B17: Convertible | D17: 1.065 | F17: 0.0000 | G17: 500
A19: (b) | B19: Identify which vehicle types have full credibility on their complement.
A20: =INDEX('Point Grid'!$C$8:$I$30,MATCH($A$1,'Point Grid'!$A$8:$A$30,0),MATCH(A19,'Point Grid'!$C$7:$I$7,0)) -> 1 | B20: Briefly explain why.
A23: (c) | B23: Briefly explain why the VehicleType relativity for Convertibles found in
A24: =INDEX('Point Grid'!$C$8:$I$30,MATCH($A$1,'Point Grid'!$A$8:$A$30,0),MATCH(A23,'Point Grid'!$C$7:$I$7,0)) -> 0.5 | B24: part a.) above may be incorrect.
